{"text_format":"3","workbook":"xlsx","n_sheets":3,"sheets":["ToR","Sheet2","Sheet1"],"not_rendered":{"defined_names":38},"read":"whole","date_system":"1900"}

{"sheet":"ToR","index":0,"n_rows":45,"n_cols":10,"rows_kept":45,"merged":[[0,0,0,9],[27,0,27,9],[29,0,29,8],[30,0,30,8],[31,0,31,8],[32,0,32,8],[33,0,33,8],[34,0,34,8],[35,0,35,8],[36,0,36,8],[37,0,37,8],[38,0,38,8],[39,0,39,8],[40,0,40,8],[41,0,41,8],[42,0,42,8]]}
["ITT No. PFRU2-2025-257 Procurement of Gabions | ITT № PFRU2-2025-257 Закупівля Габіонів\nVolume 3 - Terms of Reference (ToR)/Specifications | Розділ 3 - Технічне завдання (ТЗ)/Специфікації"]
[]
["№ LOT | № ЛОТ","Column1","№ Item |\n№ Позиції","Name according to the procurement - Description and Specifications of Item\n|\n(It is allowed to submit analogues for any positions)","Назва згідно закупівлі - Опис і специфікації предмету закупівлі\n|\n(Дозволяється подача аналогів на будь-які позиції)","Estimated first order amount, GBP excl. VAT\n| \nОрієнтовна сума першого замовлення, Фунти Стерлінги без ПДВ","Units \n| \nОд. вим.","Name according to the proposal \n| \nНазва згідно пропозиції","Proposed description & technical specifications (include brand & model (if applicable), etc.) \n|\nПропонований опис і технічні характеристики (включаючи марку та модель(за наявності), тощо)","Unit Price, GBP excl. VAT\n| \nЦіна за од-цю, Фунти Стерлінги без ПДВ2"]
[]
[1,1,{"$f":"_xlfn.CONCAT(Table1[[#This Row],[№ LOT | № ЛОТ]],\".\",Table1[[#This Row],[Column1]])","v":"1.1"},"Gabion, dimensions (L×W×H, m): 1×1×1. Diameter of galvanized wire, mm: 4 or 5. Mesh size, mm: 50*50 or 75*75 or 100*100. The material of the bag is geotextile. The density of the bag material is from 250 g/m²","Габіон, габарити (Д×Ш×В, м): 1×1×1. Діаметр оцинкованого дроту, мм: 4 або 5. Розмір вічка, мм: 50*50 або 75*75 або 100*100. Матеріал мішку - геотекстиль. Щільність матеріалу мішку - від 250 г/м²",{"v":2664,"d":"2,664.00"},"pcs. | шт.",null,null,{"v":0,"d":"0.00"}]
[1,{"$f":"B5+1","v":2},{"$f":"_xlfn.CONCAT(Table1[[#This Row],[№ LOT | № ЛОТ]],\".\",Table1[[#This Row],[Column1]])","v":"1.2"},"Gabion, dimensions (L×W×H, m): 1×1×2. Diameter of galvanized wire, mm: 4 or 5. Mesh size, mm: 50*50 or 75*75 or 100*100. The material of the bag is geotextile. The density of the bag material is from 250 g/m²","Габіон, габарити (Д×Ш×В, м): 1×1×2. Діаметр оцинкованого дроту, мм: 4 або 5. Розмір вічка, мм: 50*50 або 75*75 або 100*100. Матеріал мішку - геотекстиль. Щільність матеріалу мішку - від 250 г/м²",{"v":52500,"d":"52,500.00"},"pcs. | шт.",null,null,{"v":0,"d":"0.00"}]
[1,{"$f":"B6+1","v":3},{"$f":"_xlfn.CONCAT(Table1[[#This Row],[№ LOT | № ЛОТ]],\".\",Table1[[#This Row],[Column1]])","v":"1.3"},"Gabion, dimensions (L×W×H, m): 1×2×1. Diameter of galvanized wire, mm: 4 or 5. Mesh size, mm: 50*50 or 75*75 or 100*100. The material of the bag is geotextile. The density of the bag material is from 250 g/m²","Габіон, габарити (Д×Ш×В, м): 1×2×1. Діаметр оцинкованого дроту, мм: 4 або 5. Розмір вічка, мм: 50*50 або 75*75 або 100*100. Матеріал мішку - геотекстиль. Щільність матеріалу мішку - від 250 г/м²",null,"pcs. | шт.",null,null,{"v":0,"d":"0.00"}]
[1,4,{"$f":"_xlfn.CONCAT(Table1[[#This Row],[№ LOT | № ЛОТ]],\".\",Table1[[#This Row],[Column1]])","v":"1.4"},"Gabion, dimensions (L×W×H, m): 1×2×2. Diameter of galvanized wire, mm: 4 or 5. Mesh size, mm: 50*50 or 75*75 or 100*100. The material of the bag is geotextile. The density of the bag material is from 250 g/m²","Габіон, габарити (Д×Ш×В, м): 1×2×2. Діаметр оцинкованого дроту, мм: 4 або 5. Розмір вічка, мм: 50*50 або 75*75 або 100*100. Матеріал мішку - геотекстиль. Щільність матеріалу мішку - від 250 г/м²",null,"pcs. | шт.",null,null,{"v":0,"d":"0.00"}]
[1,5,{"$f":"_xlfn.CONCAT(Table1[[#This Row],[№ LOT | № ЛОТ]],\".\",Table1[[#This Row],[Column1]])","v":"1.5"},"Gabion, dimensions (L×W×H, m): 2×1×1. Diameter of galvanized wire, mm: 4 or 5. Mesh size, mm: 50*50 or 75*75 or 100*100. The material of the bag is geotextile. The density of the bag material is from 250 g/m²","Габіон, габарити (Д×Ш×В, м): 2×1×1. Діаметр оцинкованого дроту, мм: 4 або 5. Розмір вічка, мм: 50*50 або 75*75 або 100*100. Матеріал мішку - геотекстиль. Щільність матеріалу мішку - від 250 г/м²",null,"pcs. | шт.",null,null,{"v":0,"d":"0.00"}]
[1,6,{"$f":"_xlfn.CONCAT(Table1[[#This Row],[№ LOT | № ЛОТ]],\".\",Table1[[#This Row],[Column1]])","v":"1.6"},"Gabion, dimensions (L×W×H, m): 2×1×2. Diameter of galvanized wire, mm: 4 or 5. Mesh size, mm: 50*50 or 75*75 or 100*100. The material of the bag is geotextile. The density of the bag material is from 250 g/m²","Габіон, габарити (Д×Ш×В, м): 2×1×2. Діаметр оцинкованого дроту, мм: 4 або 5. Розмір вічка, мм: 50*50 або 75*75 або 100*100. Матеріал мішку - геотекстиль. Щільність матеріалу мішку - від 250 г/м²",{"v":10875,"d":"10,875.00"},"pcs. | шт.",null,null,{"v":0,"d":"0.00"}]
[1,7,{"$f":"_xlfn.CONCAT(Table1[[#This Row],[№ LOT | № ЛОТ]],\".\",Table1[[#This Row],[Column1]])","v":"1.7"},"Gabion, dimensions (L×W×H, m): 2×2×1. Diameter of galvanized wire, mm: 4 or 5. Mesh size, mm: 50*50 or 75*75 or 100*100. The material of the bag is geotextile. The density of the bag material is from 250 g/m²","Габіон, габарити (Д×Ш×В, м): 2×2×1. Діаметр оцинкованого дроту, мм: 4 або 5. Розмір вічка, мм: 50*50 або 75*75 або 100*100. Матеріал мішку - геотекстиль. Щільність матеріалу мішку - від 250 г/м²",null,"pcs. | шт.",null,null,{"v":0,"d":"0.00"}]
[1,8,{"$f":"_xlfn.CONCAT(Table1[[#This Row],[№ LOT | № ЛОТ]],\".\",Table1[[#This Row],[Column1]])","v":"1.8"},"Gabion, dimensions (L×W×H, m): 2×2×2. Diameter of galvanized wire, mm: 4 or 5. Mesh size, mm: 50*50 or 75*75 or 100*100. The material of the bag is geotextile. The density of the bag material is from 250 g/m²","Габіон, габарити (Д×Ш×В, м): 2×2×2. Діаметр оцинкованого дроту, мм: 4 або 5. Розмір вічка, мм: 50*50 або 75*75 або 100*100. Матеріал мішку - геотекстиль. Щільність матеріалу мішку - від 250 г/м²",null,"pcs. | шт.",null,null,{"v":0,"d":"0.00"}]
[1,9,{"$f":"_xlfn.CONCAT(Table1[[#This Row],[№ LOT | № ЛОТ]],\".\",Table1[[#This Row],[Column1]])","v":"1.9"},"Gabion, dimensions (L×W×H, m): 3×1×1. Diameter of galvanized wire, mm: 4 or 5. Mesh size, mm: 50*50 or 75*75 or 100*100. The material of the bag is geotextile. The density of the bag material is from 250 g/m²","Габіон, габарити (Д×Ш×В, м): 3×1×1. Діаметр оцинкованого дроту, мм: 4 або 5. Розмір вічка, мм: 50*50 або 75*75 або 100*100. Матеріал мішку - геотекстиль. Щільність матеріалу мішку - від 250 г/м²",null,"pcs. | шт.",null,null,{"v":0,"d":"0.00"}]
[1,10,{"$f":"_xlfn.CONCAT(Table1[[#This Row],[№ LOT | № ЛОТ]],\".\",Table1[[#This Row],[Column1]])","v":"1.10"},"Gabion, dimensions (L×W×H, m): 3×1×2. Diameter of galvanized wire, mm: 4 or 5. Mesh size, mm: 50*50 or 75*75 or 100*100. The material of the bag is geotextile. The density of the bag material is from 250 g/m²","Габіон, габарити (Д×Ш×В, м): 3×1×2. Діаметр оцинкованого дроту, мм: 4 або 5. Розмір вічка, мм: 50*50 або 75*75 або 100*100. Матеріал мішку - геотекстиль. Щільність матеріалу мішку - від 250 г/м²",null,"pcs. | шт.",null,null,{"v":0,"d":"0.00"}]
[1,11,{"$f":"_xlfn.CONCAT(Table1[[#This Row],[№ LOT | № ЛОТ]],\".\",Table1[[#This Row],[Column1]])","v":"1.11"},"Gabion, dimensions (L×W×H, m): 3×2×1. Diameter of galvanized wire, mm: 4 or 5. Mesh size, mm: 50*50 or 75*75 or 100*100. The material of the bag is geotextile. The density of the bag material is from 250 g/m²","Габіон, габарити (Д×Ш×В, м): 3×2×1. Діаметр оцинкованого дроту, мм: 4 або 5. Розмір вічка, мм: 50*50 або 75*75 або 100*100. Матеріал мішку - геотекстиль. Щільність матеріалу мішку - від 250 г/м²",null,"pcs. | шт.",null,null,{"v":0,"d":"0.00"}]
[1,12,{"$f":"_xlfn.CONCAT(Table1[[#This Row],[№ LOT | № ЛОТ]],\".\",Table1[[#This Row],[Column1]])","v":"1.12"},"Gabion, dimensions (L×W×H, m): 3×2×2. Diameter of galvanized wire, mm: 4 or 5. Mesh size, mm: 50*50 or 75*75 or 100*100. The material of the bag is geotextile. The density of the bag material is from 250 g/m²","Габіон, габарити (Д×Ш×В, м): 3×2×2. Діаметр оцинкованого дроту, мм: 4 або 5. Розмір вічка, мм: 50*50 або 75*75 або 100*100. Матеріал мішку - геотекстиль. Щільність матеріалу мішку - від 250 г/м²",null,"pcs. | шт.",null,null,{"v":0,"d":"0.00"}]
[1,13,{"$f":"_xlfn.CONCAT(Table1[[#This Row],[№ LOT | № ЛОТ]],\".\",Table1[[#This Row],[Column1]])","v":"1.13"},"Gabion, dimensions (L×W×H, m): 4×1×1. Diameter of galvanized wire, mm: 4 or 5. Mesh size, mm: 50*50 or 75*75 or 100*100. The material of the bag is geotextile. The density of the bag material is from 250 g/m²","Габіон, габарити (Д×Ш×В, м): 4×1×1. Діаметр оцинкованого дроту, мм: 4 або 5. Розмір вічка, мм: 50*50 або 75*75 або 100*100. Матеріал мішку - геотекстиль. Щільність матеріалу мішку - від 250 г/м²",null,"pcs. | шт.",null,null,{"v":0,"d":"0.00"}]
[1,14,{"$f":"_xlfn.CONCAT(Table1[[#This Row],[№ LOT | № ЛОТ]],\".\",Table1[[#This Row],[Column1]])","v":"1.14"},"Gabion, dimensions (L×W×H, m): 4×1×2. Diameter of galvanized wire, mm: 4 or 5. Mesh size, mm: 50*50 or 75*75 or 100*100. The material of the bag is geotextile. The density of the bag material is from 250 g/m²","Габіон, габарити (Д×Ш×В, м): 4×1×2. Діаметр оцинкованого дроту, мм: 4 або 5. Розмір вічка, мм: 50*50 або 75*75 або 100*100. Матеріал мішку - геотекстиль. Щільність матеріалу мішку - від 250 г/м²",{"v":19500,"d":"19,500.00"},"pcs. | шт.",null,null,{"v":0,"d":"0.00"}]
[1,15,{"$f":"_xlfn.CONCAT(Table1[[#This Row],[№ LOT | № ЛОТ]],\".\",Table1[[#This Row],[Column1]])","v":"1.15"},"Gabion, dimensions (L×W×H, m): 4×2×1. Diameter of galvanized wire, mm: 4 or 5. Mesh size, mm: 50*50 or 75*75 or 100*100. The material of the bag is geotextile. The density of the bag material is from 250 g/m²","Габіон, габарити (Д×Ш×В, м): 4×2×1. Діаметр оцинкованого дроту, мм: 4 або 5. Розмір вічка, мм: 50*50 або 75*75 або 100*100. Матеріал мішку - геотекстиль. Щільність матеріалу мішку - від 250 г/м²",null,"pcs. | шт.",null,null,{"v":0,"d":"0.00"}]
[1,16,{"$f":"_xlfn.CONCAT(Table1[[#This Row],[№ LOT | № ЛОТ]],\".\",Table1[[#This Row],[Column1]])","v":"1.16"},"Gabion, dimensions (L×W×H, m): 4×2×2. Diameter of galvanized wire, mm: 4 or 5. Mesh size, mm: 50*50 or 75*75 or 100*100. The material of the bag is geotextile. The density of the bag material is from 250 g/m²","Габіон, габарити (Д×Ш×В, м): 4×2×2. Діаметр оцинкованого дроту, мм: 4 або 5. Розмір вічка, мм: 50*50 або 75*75 або 100*100. Матеріал мішку - геотекстиль. Щільність матеріалу мішку - від 250 г/м²",{"v":5400,"d":"5,400.00"},"pcs. | шт.",null,null,{"v":0,"d":"0.00"}]
[1,17,{"$f":"_xlfn.CONCAT(Table1[[#This Row],[№ LOT | № ЛОТ]],\".\",Table1[[#This Row],[Column1]])","v":"1.17"},"Gabion, dimensions (L×W×H, m): 5×1×1. Diameter of galvanized wire, mm: 4 or 5. Mesh size, mm: 50*50 or 75*75 or 100*100. The material of the bag is geotextile. The density of the bag material is from 250 g/m²","Габіон, габарити (Д×Ш×В, м): 5×1×1. Діаметр оцинкованого дроту, мм: 4 або 5. Розмір вічка, мм: 50*50 або 75*75 або 100*100. Матеріал мішку - геотекстиль. Щільність матеріалу мішку - від 250 г/м²",null,"pcs. | шт.",null,null,{"v":0,"d":"0.00"}]
[1,18,{"$f":"_xlfn.CONCAT(Table1[[#This Row],[№ LOT | № ЛОТ]],\".\",Table1[[#This Row],[Column1]])","v":"1.18"},"Gabion, dimensions (L×W×H, m): 5×1×2. Diameter of galvanized wire, mm: 4 or 5. Mesh size, mm: 50*50 or 75*75 or 100*100. The material of the bag is geotextile. The density of the bag material is from 250 g/m²","Габіон, габарити (Д×Ш×В, м): 5×1×2. Діаметр оцинкованого дроту, мм: 4 або 5. Розмір вічка, мм: 50*50 або 75*75 або 100*100. Матеріал мішку - геотекстиль. Щільність матеріалу мішку - від 250 г/м²",null,"pcs. | шт.",null,null,{"v":0,"d":"0.00"}]
[1,19,{"$f":"_xlfn.CONCAT(Table1[[#This Row],[№ LOT | № ЛОТ]],\".\",Table1[[#This Row],[Column1]])","v":"1.19"},"Gabion, dimensions (L×W×H, m): 5×2×1. Diameter of galvanized wire, mm: 4 or 5. Mesh size, mm: 50*50 or 75*75 or 100*100. The material of the bag is geotextile. The density of the bag material is from 250 g/m²","Габіон, габарити (Д×Ш×В, м): 5×2×1. Діаметр оцинкованого дроту, мм: 4 або 5. Розмір вічка, мм: 50*50 або 75*75 або 100*100. Матеріал мішку - геотекстиль. Щільність матеріалу мішку - від 250 г/м²",null,"pcs. | шт.",null,null,{"v":0,"d":"0.00"}]
[1,20,{"$f":"_xlfn.CONCAT(Table1[[#This Row],[№ LOT | № ЛОТ]],\".\",Table1[[#This Row],[Column1]])","v":"1.20"},"Gabion, dimensions (L×W×H, m): 5×2×2. Diameter of galvanized wire, mm: 4 or 5. Mesh size, mm: 50*50 or 75*75 or 100*100. The material of the bag is geotextile. The density of the bag material is from 250 g/m²","Габіон, габарити (Д×Ш×В, м): 5×2×2. Діаметр оцинкованого дроту, мм: 4 або 5. Розмір вічка, мм: 50*50 або 75*75 або 100*100. Матеріал мішку - геотекстиль. Щільність матеріалу мішку - від 250 г/м²",{"v":1500,"d":"1,500.00"},"pcs. | шт.",null,null,{"v":0,"d":"0.00"}]
[{"$nulls":8},"Total amount VAT excl. |\nЗагальна сума без ПДВ",{"$f":"SUBTOTAL(109,J5:J24)","v":{"v":0,"d":"0.00"}}]
[2,1,{"$f":"_xlfn.CONCAT(Table1[[#This Row],[№ LOT | № ЛОТ]],\".\",Table1[[#This Row],[Column1]])","v":"2.1"},"Protective Netting – Metal-synthetic with a steel forged rope inside and diamond-shaped mesh \nExecution Type: No. 2 (SHA) \nCord Material: Polypropylene (reinforced) \nCord Diameter: 8.0 mm (1.5 – 2.0 mm) \nClamping Clamp Material: Galvanized steel \nCard Dimensions (mm): 5000x3000 \nCard Area (m²): 15 Cards in Set: 2 pcs \nMesh Size (mm): 150x150 Tensile Strength of Mesh (kN): 12-15 \nBreaking Force of Supporting Rope (kN): 12-15 \nEnergy Absorption Capacity for Impact Loads When Colliding with UAVs (J): 17,000. Additional Set Includes: Rope clamps (general purpose) DIN 741 (rope diameter, 10mm)./ ","Сітка захисна метало - синтетична із сталевим кованим тросом всередині та з ромбічним вічком.\nТип виконання:№2 (ША)  \nМатеріал плетеного шнура: Поліпропілен (армований)  \nДіаметр шнура: 8,0 мм (1,5 – 2,0 мм) \nМатеріал обтискних скоб: Оцинкована сталь \nРозміри карти, мм: 5000x3000 \nПлоща карт, м2: 15 Карт в комплекті: 2 шт \nРозмір вічка, мм: 150x150.Міцність на розрив вічка, kN: 12-15 \nРозривне зусилля несучого шнура, kN: 12-15 \nЕнергопоглинаюча здатність ударних навантажень при зіткненні з БПЛА, Дж: 17000.В комлпекті додатково: затискач для канатів (загального призначення) DIN 741 (діаметр троса, 10мм).",{"v":3550,"d":"3,550.00"},"pcs. | шт.",null,null,{"v":0,"d":"0.00"}]
[{"$nulls":8},"Total amount VAT excl. |\nЗагальна сума без ПДВ",{"$f":"SUBTOTAL(109,J26:J26)","v":{"v":0,"d":"0.00"}}]
["Core note 1: Delivery destination - throughout the unoccupied territory of Ukraine.The contractual delivery address will be provided to the awarded bidder in each PO issued under VFA. /\nОсновна примітка 1: Місце доставки - по всій неокупованій території України. Контрактна адреса доставки буде надана переможцю тендеру в кожному окремому замовленні на закупівлю в рамках угоди.\nCore note 2: Fixed Price in GBP (the price should be calculated based on the exchange rate of GBP to UAH, according to the OANDA rate ( https://fxds-hcc.oanda.com/ ) on the Friday immediately preceding the date on which the invoice was issued). The exchange rate for this ITT as of the issue date - 57.2965 UAH./ \nОсновна примітка 2: Фіксована ціна у фунтах стерлінгів (ціна повинна бути розрахована на основі обмінного курсу фунта стерлінгів до гривні, згідно з курсом OANDA ( https://fxds-hcc.oanda.com/ ) у п'ятницю, що безпосередньо передує даті виставлення рахунку-фактури). Обмінний курс для цієї ІТТ на дату публікації - 57.2965 грн.\n\nGeneral notes: / Загальні примітки:\n1•\tAll Goods offered in response to this ITT must be new and unused. / \n1•\tУсі Товари, що пропонуються у відповідь на цю ITT, повинні бути новими та невикористаними.\n2•\tAll electrical Goods must operate on 240V, 50Hz.  [ignore if not applicable] / \n2•\tВсі електричні товари повинні працювати від мережі 240 В, 50 Гц.  [ігнорувати, якщо не застосовується]\n3•\tUnit prices must include applicable transportation/delivery/installation/unloading costs and local taxes, excluding VAT.  / \n3•\tЦіни повинні включати відповідні витрати на транспортування/доставку/монтаж/розвантаження та місцеві податки, без урахування ПДВ. \n4•\tUnless otherwise indicated, stated brand names or models are for illustrative description only.  An equivalent substitute, as determined by the specifications, is acceptable. / \n4•\tЯкщо не вказано інше, зазначені торгові марки або моделі слугують лише для ілюстративного опису.  Допускається еквівалентна заміна, визначена технічними характеристиками.\n5•\tAt this time, specific quantities to be purchased under any VFA resulting from this ITT are unknown.  Specific quantities will depend on the needs of the Project. All unit prices included in the Tender must remain fixed for the initial Ordering Period of the Framework. Estimated total amount of the first order is ~95 989 GBP / \n5•\tНаразі невідомі конкретні обсяги, які будуть закуплені за будь-яким Рамковим договором, що є результатом цього ITT.  Конкретні обсяги залежатимуть від потреб Проекту. Всі ціни за одиницю товару, включені в Тендер, повинні залишатися фіксованими протягом початкового періоду замовлення Рамкової угоди. Орієнтовна загальна сума першого замовлення становить ~95 989 фунтів стерлінгів. \n6•\tWarranty service and repair within the country of performance is required for all Goods under this ITT. The warranty coverage must be valid on all Goods for a minimum of twelve (12) months after delivery and acceptance of the Goods, unless otherwise specified in the technical specifications. / \n6•\tГарантійне обслуговування та ремонт у країні виконання робіт є обов'язковим для всіх Товарів за цією ІТТ. Гарантійне покриття має бути дійсним для всіх Товарів протягом щонайменше дванадцяти (12) місяців після доставки та приймання Товарів, якщо інше не зазначено в технічних специфікаціях."]
[{"$nulls":9},"Bidder to complete | Для заповненя постачальнику:"]
["Delivery Terms (INCOTERMS 2020): | \nУмови постачання (ІНКОТЕРМС 2020):",{"$nulls":8},"DDP"]
["Payment terms (Chemonics requirement - 100% post-payment, NET within 30 c.d.): | \nУмови оплати (вимога Chemonics - 100% післяплата, NET протягом 30 к.д.):"]
["Bid validity (c.d.) | \nТермін дії пропозиції (к.д.)"]
["Bid currency: | \nВалюта пропозиції: ",{"$nulls":8},"GBP | Фунти Стерлінги"]
["Warranty period (months): |\nГарантійний термін (місяців):"]
["Delivery time - calendar days (after PO signing) |\nТермін поставки - календарні дні (після підписання Договору на поставку)"]
[]
["Company name according to the Charter: | \nНазва компанії згідно Статуту:"]
["EDRPOU | ЄДРПОУ:"]
["Indicate the status of the company (Manufacturer / trader / distributor): | \nВкажіть статус компанії (виробник / трейдер / дистриб'ютор):"]
["Signature of the company representative and Stamp | \nПідпис представника підприємства та Печатка"]
["Date | Дата:"]
["Contact person of the company (whith role): | \nКонтактна особа компанії (із зазначенням посади):"]
["Mobile: | Мобільний:"]
["Після заповнення, вимога Chemonics - надати цей документ у підписаному/завіреному печаткою форматі PDF та Excel."]
["Once completed, Chemonics requirement - provide this document in both signed/stamped PDF and Excel formats.\n"]

{"sheet":"Sheet2","index":1,"n_rows":55,"n_cols":10,"rows_kept":55,"hidden":true,"merged":[[46,4,46,9],[51,4,51,9]]}
[]
[]
[{"$nulls":4},"x"]
[{"$nulls":3},150,19.420782939910104,null,19.42,null,{"$f":"D4*G4","v":{"v":2913.0000000000005,"d":"2,913.00"}}]
[{"$nulls":3},30,22.562751967112074,null,22.57,null,{"$f":"G5*D5","v":{"v":677.1,"d":"677.10"}}]
[{"$nulls":8},{"$f":"SUM(I4:I5)","v":{"v":3590.1000000000004,"d":"3,590.10"}}]
[{"$nulls":4},{"$f":"(D4*E4)+(D5*E5)","v":3589.999999999878}]
[]
[]
[]
[]
[]
[]
[{"$nulls":5},"Пропозиція по тендеру","Запропоновано","Ціна","Кількість","Сума"]
[{"$nulls":5},"ДСП Egger U 963 ST9 Діамант сірий (Антрацит) 2800х2070х25 мм Нарізані ДСП плити товщина 25 мл. Темно сірого або чорного кольору з матавим покриттям з кромкою чорного кольору.\nВисота 2700 см (з кромкою)\nШирина 30 см (з кромкою)","ДСП U963 ST9 Діамант сірий 2800х2070х25 мм EGGER (2024-26)\nВисота 2700 см (з кромкою)\nШирина 30 см (з кромкою)",22.57,{"v":30,"d":"30.00"},{"$f":"H15*I15","v":{"v":677.1,"d":"677.10"}}]
[{"$nulls":5},"ДСП Egger U 963 ST9 Діамант сірий (Антрацит) 2800х2070х25 мм Нарізані ДСП плити товщина 25 мл. Темно сірого або чорного кольору з матавим покриттям з кромкою чорного кольору. Довжина 900 см (з кромкою)\nШирина 30 см (без кромки)","ДСП U963 ST9 Діамант сірий 2800х2070х25 мм EGGER (2024-26)\nДовжина 900 см (з кромкою)\nШирина 30 см (без кромки)",19.42,{"v":150,"d":"150.00"},{"$f":"H16*I16","v":{"v":2913.0000000000005,"d":"2,913.00"}}]
[{"$nulls":9},{"$f":"SUM(J15:J16)","v":{"v":3590.1000000000004,"d":"3,590.10"}}]
{"$rows_empty":29}
[{"$nulls":4},"Before"]
[{"$nulls":5},"Description","UoM","Qty","Price","Amount"]
[{"$nulls":4},227,"Egger chipboard U 963 ST9 Diamond gray (Anthracite) 2800x2070x25 mm Sliced chipboard boards 25 ml thick. Dark gray or black with a matte finish with a black edge banding. Height 2700 mm (with edge banding) Width 300 mm (with edge banding)","sheet",14,188.3,{"$f":"H49*I49","v":{"v":2636.2000000000003,"d":"2,636.20"}}]
[{"$nulls":4},228,"Edge ABS U963 ST9 Diamond Gray 43*2 mm (75 m/p) EGGER Щ(2024-26)","linear meter",510,1.87,{"$f":"H50*I50","v":{"v":953.7,"d":"953.70"}}]
[{"$nulls":9},{"$f":"SUM(J49:J50)","v":{"v":3589.9000000000005,"d":"3,589.90"}}]
[{"$nulls":4},"Now"]
[{"$nulls":4},227,"Chipboard U963 ST9 Diamond gray 2800x2070x25 mm EGGER (2024-26) Height 2700 mm (with edge) Width 300 mm (with edge)","pcs",30,22.57,{"$f":"H53*I53","v":{"v":677.1,"d":"677.10"}}]
[{"$nulls":4},228,"Chipboard U963 ST9 Diamond gray 2800x2070x25 mm EGGER (2024-26) Length 900 mm (with edge banding) Width 300 mm (without edge banding)","pcs",150,19.41,{"$f":"H54*I54","v":{"v":2911.5,"d":"2,911.50"}}]
[{"$nulls":9},{"$f":"SUM(J53:J54)","v":{"v":3588.6,"d":"3,588.60"}}]

{"sheet":"Sheet1","index":2,"n_rows":6,"n_cols":8,"rows_kept":6,"hidden":true}
[]
[{"$nulls":4},"Плити мінераловатні ТЕХНОБЛОК СТАНДАРТ 1200*600*100мм (6 плит)",411,"м2","Високопілля, вул. Енергетична (Гагаріна), 7"]
[{"$nulls":4},"Утеплювач Техноблок Стандарт 1200х600х50мм (5,76/8пл) МП",186,"м2","Високопілля, вул. Енергетична (Гагаріна), 7"]
[{"$nulls":4},"Плити теплоізоляційні з минеральної вати на синтетичному зв'язуючому Izovat-LS(1000x600x100 мм)",33,"м2","Високопілля, вул. Енергетична (Гагаріна), 7"]
[{"$nulls":4},"Плити мінераловатні ТЕХНОБЛОК СТАНДАРТ 1200*600*100мм (6 плит)",250,"м2","Shkilna 104, Kalynivske village, 74131 , Beryslav district, Kherson Oblast \n(47.11839256223751, 32.982446441864816)"]
[{"$nulls":4},"Плити мінераловатні ТЕХНОБЛОК СТАНДАРТ 1200*600*100мм (6 плит)",300,"м2","Shkilna 120, Kalynivske village, 74131 , Beryslav district, Kherson Oblast (47.11650667082786, 32.97544873404343)"]